fUST/lending_fUST_20250605
["ID","MTS","AMOUNT","RATE_DAILY","PERIOD"]
[364373140,1749083443284,-157.0,0.00022,2]
[364373142,1749083443293,-157.0,0.00022,2]
[364373144,1749083443303,-1237.44866597,0.00022003,6]
[364373146,1749083443312,-440.0,0.00022093,2]
[364373161,1749083443444,-422.61,0.00022093,2]
[364373163,1749083443454,-439.6809293,0.00022095,2]
[364373174,1749083443549,-440.0,0.00019355,2]
[364373176,1749083443559,-194.1390707,0.00022095,2]
[364373178,1749083443569,-905.87,0.00022097,2]
[364373179,1749083443578,-440.0,0.00022097,2]
[364373182,1749083443588,-1121.15,0.00022097,2]
[364373184,1749083443598,-918.05328639,0.000221,7]
[364373186,1749083443610,-496.12671361,0.000221,7]
[364373188,1749083443620,-268.16136254,0.000221,2]
[364373201,1749083443739,-440.0,0.00017984,2]
[364373411,1749083446133,-420.0,0.00017437,2]
[364373413,1749083446143,-420.0,0.00017437,2]
[364373415,1749083446151,-440.0,0.00018258,2]
[364373417,1749083446161,-183.28177226,0.00018532,2]
[364374559,1749083800335,292.427848,0.00013699,2]
[364374661,1749084632351,-185.26664983,0.00017335,2]
[364374706,1749084632865,-440.0,0.00017434,2]
[364374708,1749084632875,-440.0,0.00017434,2]
[364374711,1749084632885,-440.0,0.00017434,2]
[364374713,1749084632895,-265.95229561,0.00017434,2]
[364374715,1749084632905,-440.0,0.00017434,2]
[364374716,1749084632914,-440.0,0.00017434,2]
[364374719,1749084632924,-420.0,0.00017435,2]
[364374721,1749084632941,-420.0,0.00017435,2]
[364374723,1749084632951,-420.0,0.00017435,2]
[364374725,1749084632965,-420.0,0.00017435,2]
[364374727,1749084632974,-455.0,0.00017435,2]
[364374729,1749084632984,-420.0,0.00017435,2]
[364374731,1749084632993,-1.73666727,0.00017435,2]
[364374733,1749084633005,-313.73916419,0.00017435,2]
[364374735,1749084633016,-104.52416854,0.00017435,2]
[364374737,1749084633026,-176.30411372,0.00017435,2]
[364374951,1749084638155,-243.69588628,0.00017435,2]
[364374952,1749084638165,-420.0,0.00017435,2]
[364374953,1749084638174,-420.0,0.00017435,2]
[364374954,1749084638183,-441.99181003,0.00017435,2]
[364374955,1749084638192,-440.0,0.00017435,2]
[364374956,1749084638201,-420.0,0.00017435,2]
[364374957,1749084638214,-420.0,0.00017435,2]
[364374958,1749084638223,-412.40970307,0.00017435,2]
[364374959,1749084638232,-440.0,0.00017435,2]
[364374960,1749084638241,-314.31340068,0.00017435,2]
[364374961,1749084638253,-105.68659932,0.00017435,2]
[364374962,1749084638262,-420.0,0.00017435,2]
[364374963,1749084638271,-415.66454042,0.00017435,2]
[364374964,1749084638282,-4.33545958,0.00017435,2]
[364374965,1749084638291,-420.0,0.00017435,2]
[364374966,1749084638300,-440.0,0.00017435,2]
[364374967,1749084638309,-440.0,0.00017435,2]
[364374968,1749084638318,-280.00793091,0.00017435,2]
[364374969,1749084638329,-159.99206909,0.00017435,2]
[364374970,1749084638339,-440.0,0.00017435,2]
[364374971,1749084638349,-430.0,0.00017435,2]
[364374972,1749084638358,-410.0,0.00017435,2]
[364374973,1749084638368,-440.0,0.00017435,2]
[364374974,1749084638378,-430.0,0.00017435,2]
[364374975,1749084638387,-450.0,0.00017435,2]
[364374991,1749084638544,-410.0,0.00017435,2]
[364374993,1749084638554,-503.78771177,0.00017435,2]
[364374995,1749084638563,-430.0,0.00017435,2]
[364374997,1749084638572,-430.0,0.00017435,2]
[364374999,1749084638582,-450.0,0.00017435,2]
[364375001,1749084638596,-430.0,0.00017435,2]
[364375003,1749084638605,-410.0,0.00017435,2]
[364375005,1749084638615,-410.0,0.00017435,2]
[364375007,1749084638626,-440.0,0.00017435,2]
[364375009,1749084638637,-410.0,0.00017435,2]
[364375012,1749084638646,-440.0,0.00017435,2]
[364375014,1749084638655,-440.0,0.00017435,2]
[364375016,1749084638667,-501.27401851,0.00017435,2]
[364375018,1749084638677,-430.0,0.00017435,2]
[364375020,1749084638687,-430.0,0.00017435,2]
[364375022,1749084638697,-430.0,0.00017435,2]
[364375024,1749084638707,-230.44971944,0.00017435,2]
[364375026,1749084638719,-199.55028056,0.00017435,2]
[364375028,1749084638730,-410.0,0.00017435,2]
[364375030,1749084638739,-430.0,0.00017435,2]
[364375032,1749084638748,-410.0,0.00017435,2]
[364375034,1749084638758,-440.0,0.00017435,2]
[364375036,1749084638767,-440.0,0.00017435,2]
[364375038,1749084638776,-440.0,0.00017435,2]
[364375040,1749084638785,-402.29175014,0.00017435,2]
[364375042,1749084638794,-440.0,0.00017435,2]
[364375044,1749084638803,-440.0,0.00017435,2]
[364375046,1749084638812,-430.0,0.00017435,2]
[364375048,1749084638822,-440.0,0.00017435,2]
[364375050,1749084638832,-430.0,0.00017435,2]
[364375052,1749084638842,-440.0,0.00017435,2]
[364375054,1749084638852,-430.0,0.00017435,2]
[364375056,1749084638862,-440.0,0.00017435,2]
[364375058,1749084638871,-430.0,0.00017435,2]
[364375060,1749084638881,-440.0,0.00017435,2]
[364375062,1749084638890,-345.64,0.00017435,2]
[364375064,1749084638900,-430.0,0.00017435,2]
[364375066,1749084638909,-430.0,0.00017435,2]
[364375068,1749084638919,-440.0,0.00017435,2]
[364375070,1749084638929,-461.67796316,0.00017435,2]
[364375072,1749084638938,-440.0,0.00017435,2]
[364375074,1749084638947,-470.0,0.00017435,2]
[364375076,1749084638957,-430.0,0.00017435,2]
[364375078,1749084638967,-430.0,0.00017435,2]
[364375080,1749084638977,-440.0,0.00017435,2]
[364375082,1749084638986,-440.0,0.00017435,2]
[364375084,1749084638996,-430.0,0.00017435,2]
[364375086,1749084639006,-450.0,0.00017435,2]
[364375088,1749084639016,-272.2915991,0.00017435,2]
[364375090,1749084639029,-197.7084009,0.00017435,2]
[364375092,1749084639038,-430.3769709,0.00017435,2]
[364375094,1749084639048,-410.0,0.00017435,2]
[364375096,1749084639058,-440.0,0.00017435,2]
[364375098,1749084639068,-440.0,0.00017435,2]
[364375100,1749084639077,-410.0,0.00017435,2]
[364375102,1749084639086,-48.92856018,0.00017435,2]
[364375105,1749084639097,-391.07143982,0.00017435,2]
[364375106,1749084639107,-440.0,0.00017435,2]
[364375109,1749084639118,-404.32032953,0.00017435,2]
[364375111,1749084639129,-35.67967047,0.00017435,2]
[364375113,1749084639139,-250.31983859,0.00017435,2]
[364375115,1749084639154,-189.68016141,0.00017435,2]
[364375117,1749084639164,-450.0,0.00017435,2]
[364375119,1749084639172,-440.0,0.00017435,2]
[364375121,1749084639182,-410.0,0.00017435,2]
[364375123,1749084639191,-430.0,0.00017435,2]
[364375125,1749084639201,-440.0,0.00017435,2]
[364375127,1749084639211,-440.0,0.00017435,2]
[364375129,1749084639220,-27.34331234,0.00017435,2]
[364375257,1749084640473,-440.0,0.00017434,2]
[364375259,1749084640483,-422.65668766,0.00017435,2]
[364375261,1749084640492,-430.0,0.00017435,2]
[364375263,1749084640502,-410.0,0.00017435,2]
[364375265,1749084640511,-500.0,0.00017435,2]
[364375267,1749084640521,-430.0,0.00017435,2]
[364375269,1749084640530,-440.0,0.00017435,2]
[364375271,1749084640540,-440.0,0.00017435,2]
[364375274,1749084640563,-430.0,0.00017435,2]
[364375275,1749084640575,-430.0,0.00017435,2]
[364375277,1749084640584,-440.0,0.00017435,2]
[364375279,1749084640597,-400.77875898,0.00017435,2]
[364375282,1749084640609,-39.22124102,0.00017435,2]
[364375284,1749084640619,-456.43,0.00017435,2]
[364375286,1749084640629,-440.0,0.00017435,2]
[364375288,1749084640638,-401.10725529,0.00017435,2]
[364375291,1749084640657,-440.0,0.00017435,2]
[364375293,1749084640667,-440.0,0.00017435,2]
[364375295,1749084640677,-352.18703029,0.00017435,2]
[364375297,1749084640691,-87.81296971,0.00017435,2]
[364375299,1749084640700,-478.91,0.00017435,2]
[364375301,1749084640710,-440.0,0.00017435,2]
[364375303,1749084640720,-440.0,0.00017435,2]
[364375305,1749084640730,-440.0,0.00017435,2]
[364375307,1749084640739,-440.0,0.00017435,2]
[364375309,1749084640750,-440.0,0.00017435,2]
[364375310,1749084640760,-440.0,0.00017435,2]
[364375311,1749084640769,-440.0,0.00017435,2]
[364375312,1749084640778,-440.0,0.00017435,2]
[364375313,1749084640788,-420.0,0.00017435,2]
[364375314,1749084640798,-440.0,0.00017435,2]
[364375315,1749084640807,-440.0,0.00017435,2]
[364375316,1749084640817,-440.0,0.00017435,2]
[364375317,1749084640826,-440.0,0.00017435,2]
[364375319,1749084640836,-440.0,0.00017435,2]
[364375321,1749084640845,-440.0,0.00017435,2]
[364375323,1749084640855,-440.0,0.00017435,2]
[364375325,1749084640865,-541.46579146,0.00017435,2]
[364375327,1749084640874,-440.0,0.00017435,2]
[364375329,1749084640884,-450.0,0.00017435,2]
[364375331,1749084640894,-420.0,0.00017435,2]
[364375333,1749084640903,-440.0,0.00017435,2]
[364375335,1749084640912,-500.0,0.00017435,2]
[364375337,1749084640922,-500.0,0.00017435,2]
[364375339,1749084640931,-440.0,0.00017435,2]
[364375341,1749084640940,-440.0,0.00017435,2]
[364375343,1749084640949,-430.0,0.00017435,2]
[364375345,1749084640959,-460.0,0.00017436,2]
[364375346,1749084640968,-420.0,0.00017436,2]
[364375349,1749084640978,-420.0,0.00017436,2]
[364375351,1749084640988,-200.36669454,0.00017436,2]
[364375353,1749084640997,-420.0,0.00017436,2]
[364375355,1749084641007,-420.0,0.00017436,2]
[364375357,1749084641017,-420.0,0.00017436,2]
[364375359,1749084641026,-420.0,0.00017436,2]
[364375361,1749084641035,-420.0,0.00017436,2]
[364375363,1749084641045,-315.0,0.00017436,2]
[364375365,1749084641055,-430.0,0.00017436,2]
[364375367,1749084641064,-228.28051352,0.00017436,2]
[364375369,1749084641076,-201.71948648,0.00017436,2]
[364375371,1749084641086,-430.0,0.00017436,2]
[364375373,1749084641095,-430.0,0.00017436,2]
[364375375,1749084641105,-430.0,0.00017436,2]
[364375377,1749084641115,-440.0,0.00017436,2]
[364375379,1749084641124,-420.0,0.00017436,2]
[364375381,1749084641134,-244.24617451,0.00017436,2]
[364375383,1749084641146,-175.75382549,0.00017436,2]
[364375385,1749084641156,-420.0,0.00017436,2]
[364375387,1749084641165,-420.0,0.00017436,2]
[364375389,1749084641175,-420.0,0.00017436,2]
[364375391,1749084641184,-430.0,0.00017436,2]
[364375393,1749084641193,-430.0,0.00017436,2]
[364375395,1749084641203,-430.71441826,0.00017436,2]
[364375397,1749084641212,-440.0,0.00017436,2]
[364375399,1749084641223,-440.0,0.00017436,2]
[364375401,1749084641232,-450.0,0.00017436,2]
[364375403,1749084641242,-430.0,0.00017436,2]
[364375405,1749084641252,-430.0,0.00017436,2]
[364375407,1749084641261,-440.0,0.00017436,2]
[364375410,1749084641272,-440.0,0.00017436,2]
[364375412,1749084641282,-440.0,0.00017436,2]
[364375414,1749084641292,-430.0,0.00017436,2]
[364375416,1749084641301,-440.0,0.00017436,2]
[364375418,1749084641311,-430.0,0.00017436,2]
[364375420,1749084641320,-440.0,0.00017436,2]
[364375422,1749084641330,-440.0,0.00017436,2]
[364375424,1749084641339,-343.42386317,0.00017436,2]
[364375657,1749084643365,-86.57613683,0.00017436,2]
[364375659,1749084643375,-430.0,0.00017436,2]
[364375661,1749084643385,-440.0,0.00017436,2]
[364375663,1749084643395,-430.0,0.00017436,2]
[364375665,1749084643404,-440.0,0.00017436,2]
[364375667,1749084643414,-440.0,0.00017436,2]
[364375669,1749084643423,-440.0,0.00017436,2]
[364375671,1749084643433,-440.0,0.00017436,2]
[364375673,1749084643442,-440.0,0.00017436,2]
[364375675,1749084643452,-410.0,0.00017436,2]
[364375678,1749084643462,-410.0,0.00017436,2]
[364375679,1749084643472,-410.0,0.00017436,2]
[364375681,1749084643482,-440.0,0.00017436,2]
[364375684,1749084643491,-430.0,0.00017436,2]
[364375685,1749084643501,-470.13800753,0.00017436,2]
[364375687,1749084643511,-440.0,0.00017436,2]
[364375689,1749084643521,-440.0,0.00017708,2]
[364375693,1749084643530,-440.0,0.00017708,2]
[364375695,1749084643539,-440.0,0.00017708,2]
[364375698,1749084643549,-500.0,0.00017708,2]
[364375700,1749084643559,-440.0,0.00017708,2]
[364375702,1749084643569,-440.0,0.00017708,2]
[364375704,1749084643579,-361.4099551,0.00017709,2]
[364375706,1749084643591,-440.0,0.00017709,2]
[364375708,1749084643601,-410.0,0.00017709,2]
[364375710,1749084643611,-380.0,0.00017709,2]
[364375712,1749084643620,-440.0,0.00017709,2]
[364375715,1749084643631,-440.0,0.00017709,2]
[364375716,1749084643641,-440.0,0.00017709,2]
[364375718,1749084643650,-466.47,0.00017709,2]
[364375720,1749084643660,-440.0,0.00017709,2]
[364375722,1749084643670,-549.07609182,0.00017709,2]
[364375724,1749084643680,-440.0,0.00017709,2]
[364375726,1749084643690,-440.0,0.00017709,2]
[364375728,1749084643700,-478.91,0.00017709,2]
[364375730,1749084643709,-440.0,0.00017709,2]
[364375732,1749084643720,-440.0,0.00017709,2]
[364375734,1749084643729,-440.0,0.00017709,2]
[364375736,1749084643738,-440.0,0.00017709,2]
[364375738,1749084643748,-440.0,0.00017709,2]
[364375740,1749084643757,-440.0,0.00017709,2]
[364375742,1749084643767,-440.0,0.0001771,2]
[364375744,1749084643777,-440.0,0.0001771,2]
[364375746,1749084643787,-440.0,0.0001771,2]
[364375749,1749084643801,-440.0,0.0001771,2]
[364375751,1749084643811,-440.0,0.0001771,2]
[364375753,1749084643820,-160.0,0.00017712,2]
[364375755,1749084643829,-568.09,0.00017982,2]
[364375757,1749084643839,-440.0,0.00017982,2]
[364375759,1749084643849,-440.0,0.00017982,2]
[364375761,1749084643858,-440.0,0.00017982,2]
[364375763,1749084643867,-440.0,0.00017982,2]
[364375765,1749084643876,-440.0,0.00017983,2]
[364375767,1749084643886,-440.0,0.00017983,2]
[364375769,1749084643896,-440.0,0.00017983,2]
[364375771,1749084643905,-440.0,0.00017983,2]
[364375773,1749084643919,-440.0,0.00017983,2]
[364375775,1749084643929,-478.91,0.00017983,2]
[364375777,1749084643938,-440.0,0.00017983,2]
[364375779,1749084643947,-440.0,0.00017983,2]
[364375795,1749084644086,-440.0,0.00017983,2]
[364375797,1749084644095,-440.0,0.00017983,2]
[364375799,1749084644105,-440.0,0.00017983,2]
[364375801,1749084644115,-440.0,0.00017984,2]
[364375803,1749084644125,-440.0,0.00018256,2]
[364375805,1749084644136,-440.0,0.00018256,2]
[364375807,1749084644145,-440.0,0.00018256,2]
[364375809,1749084644155,-440.0,0.00018256,2]
[364375811,1749084644164,-440.0,0.00018257,2]
[364375813,1749084644175,-440.0,0.00018257,2]
[364375815,1749084644184,-440.0,0.00018257,2]
[364375817,1749084644194,-440.0,0.00018257,2]
[364375819,1749084644203,-440.0,0.00018257,2]
[364375821,1749084644212,-478.91,0.00018257,2]
[364375823,1749084644222,-440.0,0.00018257,2]
[364375825,1749084644231,-440.0,0.00018257,2]
[364375827,1749084644239,-440.0,0.00018257,2]
[364375829,1749084644249,-440.0,0.00018257,2]
[364375831,1749084644258,-440.0,0.00018258,2]
[364375833,1749084644268,-185.26664983,0.00018303,2]
[364375835,1749084644277,-440.0,0.0001853,2]
[364375837,1749084644287,-418.7,0.0001853,2]
[364375840,1749084644297,-537.44,0.0001853,2]
[364375842,1749084644307,-440.0,0.0001853,2]
[364375844,1749084644317,-440.0,0.00018531,2]
[364375846,1749084644327,-440.0,0.00018531,2]
[364375848,1749084644337,-440.0,0.00018531,2]
[364375850,1749084644346,-440.0,0.00018531,2]
[364375852,1749084644355,-440.0,0.00018531,2]
[364375854,1749084644364,-478.91,0.00018531,2]
[364375856,1749084644373,-440.0,0.00018531,2]
[364375858,1749084644383,-440.0,0.00018531,2]
[364375860,1749084644393,-500.0,0.00018531,2]
[364375862,1749084644402,-440.0,0.00018531,2]
[364375864,1749084644411,-440.0,0.00018531,2]
[364375866,1749084644421,-440.0,0.00018532,2]
[364375868,1749084644430,-440.0,0.00018804,2]
[364375870,1749084644440,-155.12,0.00018804,2]
[364375872,1749084644449,-440.0,0.00018805,2]
[364375874,1749084644459,-440.0,0.00018805,2]
[364375876,1749084644468,-440.0,0.00018805,2]
[364375878,1749084644478,-440.0,0.00018805,2]
[364375880,1749084644487,-437.08,0.00018805,2]
[364375882,1749084644497,-478.91,0.00018805,2]
[364375884,1749084644507,-440.0,0.00018805,2]
[364375886,1749084644516,-440.0,0.00018805,2]
[364375888,1749084644525,-440.0,0.00018805,2]
[364375890,1749084644535,-440.0,0.00018805,2]
[364375892,1749084644545,-440.0,0.00018806,2]
[364375894,1749084644555,-577.47604439,0.000189,2]
[364375896,1749084644564,-440.0,0.00019078,2]
[364375898,1749084644574,-440.0,0.00019079,2]
[364375900,1749084644584,-440.0,0.00019079,2]
[364375902,1749084644597,-440.0,0.00019079,2]
[364375904,1749084644607,-440.0,0.00019079,2]
[364375906,1749084644617,-478.91,0.00019079,2]
[364375908,1749084644626,-440.0,0.00019079,2]
[364375910,1749084644637,-440.0,0.00019079,2]
[364375912,1749084644646,-440.0,0.00019079,2]
[364375914,1749084644655,-440.0,0.00019079,2]
[364375916,1749084644665,-440.0,0.0001908,2]
[364375918,1749084644676,-160.0,0.00019082,2]
[364375920,1749084644686,-577.47604411,0.00019107,2]
[364375922,1749084644696,-185.26664983,0.00019271,2]
[364375924,1749084644706,-577.47604411,0.00019314,2]
[364375926,1749084644716,-473.1,0.00019352,2]
[364375928,1749084644728,-440.0,0.00019353,2]
[364375930,1749084644739,-440.0,0.00019353,2]
[364375932,1749084644749,-440.0,0.00019353,2]
[364375934,1749084644759,-398.45442385,0.00019353,2]
[364375936,1749084644769,-478.91,0.00019353,2]
[364375938,1749084644778,-440.0,0.00019353,2]
[364375940,1749084644788,-440.0,0.00019353,2]
[364375942,1749084644797,-440.0,0.00019353,2]
[364375944,1749084644807,-440.0,0.00019353,2]
[364375946,1749084644816,-440.0,0.00019354,2]
[364375948,1749084644826,-577.47604411,0.00019521,2]
[364375950,1749084644835,-229.45591648,0.00019618,2]
[364375952,1749084644845,-160.0,0.00019618,2]
[364375954,1749084644855,-160.0,0.00019618,2]
[364375956,1749084644865,-842.5625,0.00019618,2]
[364375958,1749084644875,-212.90465545,0.00019618,2]
[364375960,1749084644885,-160.0,0.00019618,2]
[364375962,1749084644894,-160.0,0.00019618,2]
[364375963,1749084644904,-423.69433488,0.00019618,2]
[364375964,1749084644914,-440.0,0.00019627,2]
[364375965,1749084644924,-440.0,0.00019627,2]
[364375966,1749084644934,-440.0,0.00019627,2]
[364375967,1749084644944,-478.91,0.00019627,2]
[364375968,1749084644953,-440.0,0.00019627,2]
[364375969,1749084644963,-440.0,0.00019627,2]
[364375970,1749084644975,-440.0,0.00019627,2]
[364375971,1749084644984,-440.0,0.00019627,2]
[364375972,1749084644993,-440.0,0.00019628,2]
[364375974,1749084645003,-577.47604411,0.00019728,2]
[364375975,1749084645012,-726.259,0.00019853,2]
[364375977,1749084645022,-179.69765561,0.00019853,2]
[364375979,1749084645031,-440.0,0.00019901,2]
[364375981,1749084645040,-440.0,0.00019901,2]
[364375983,1749084645050,-440.0,0.00019901,2]
[364375985,1749084645059,-478.91,0.00019901,2]
[364375987,1749084645069,-570.39,0.00019901,2]
[364375989,1749084645078,-440.0,0.00019901,2]
[364375991,1749084645088,-561.63822774,0.00019901,2]
[364375993,1749084645097,-440.0,0.00019901,2]
[364375995,1749084645107,-440.0,0.00019902,2]
[364375997,1749084645116,-577.47604411,0.00019934,2]
[364375999,1749084645125,-1500.0,0.00020068,2]
[364376001,1749084645135,-577.47604411,0.00020141,2]
[364376003,1749084645144,-440.0,0.00020175,2]
[364376005,1749084645154,-216.91,0.00020175,2]
[364376007,1749084645163,-435.6,0.00020175,2]
[364376009,1749084645172,-478.91,0.00020175,2]
[364376011,1749084645181,-440.0,0.00020175,2]
[364376013,1749084645191,-440.0,0.00020175,2]
[364376015,1749084645200,-440.0,0.00020176,2]
[364376017,1749084645209,-292.427848,0.00020187,2]
[364376019,1749084645218,-185.26664983,0.00020239,2]
[364376021,1749084645228,-166.0,0.00020274,2]
[364376023,1749084645237,-577.47604411,0.00020348,3]
[364376025,1749084645246,-440.0,0.00020449,2]
[364376027,1749084645255,-478.91,0.00020449,2]
[364376029,1749084645265,-440.0,0.00020449,2]
[364376031,1749084645274,-440.0,0.00020449,2]
[364376033,1749084645283,-498.47272739,0.0002045,2]
[364376035,1749084645293,-500.0,0.00020547,2]
[364376037,1749084645303,-577.47604411,0.00020555,3]
[364376039,1749084645312,-440.0,0.00020723,2]
[364376041,1749084645322,-478.91,0.00020723,2]
[364376043,1749084645331,-440.0,0.00020723,2]
[364376045,1749084645340,-440.0,0.00020723,2]
[364376047,1749084645349,-577.47604411,0.00020762,3]
[364376049,1749084645359,-577.47604411,0.00020969,4]
[364376051,1749084645370,-440.0,0.00020997,2]
[364376053,1749084645380,-478.91,0.00020997,2]
[364376055,1749084645390,-440.0,0.00020997,2]
[364376057,1749084645399,-440.0,0.00020997,2]
[364376059,1749084645409,-1500.0,0.00021164,2]
[364376061,1749084645419,-577.47604411,0.00021176,4]
[364376063,1749084645428,-185.26664983,0.00021208,2]
[364376065,1749084645438,-440.0,0.00021271,2]
[364376067,1749084645447,-478.91,0.00021271,2]
[364376070,1749084645458,-440.0,0.00021271,2]
[364376072,1749084645467,-440.0,0.00021271,2]
[364376074,1749084645477,-577.47604411,0.00021383,5]
[364376076,1749084645487,-187.0,0.000215,5]
[364376078,1749084645496,-189.5,0.000215,5]
[364376080,1749084645506,-440.0,0.00021545,2]
[364376082,1749084645515,-478.91,0.00021545,2]
[364376084,1749084645525,-441.8009293,0.00021545,2]
[364376086,1749084645534,-440.0,0.00021545,2]
[364376088,1749084645544,-577.47604411,0.0002159,5]
[364376090,1749084645553,-17292.30231861,0.00021666,2]
[364376092,1749084645567,-63271.51514704,0.00021666,2]
[364376094,1749084645579,-253.74189733,0.00021666,2]
[364376096,1749084645592,-262.248948,0.00021666,2]
[364376099,1749084645604,-5938.32181246,0.00021666,2]
[364376101,1749084645616,-11857.99234735,0.00021666,2]
[364376103,1749084645627,-10888.24527253,0.00021666,2]
[364376105,1749084645640,-2831.73914188,0.00021666,2]
[364376109,1749084645669,-461.97081591,0.00021666,2]
[364376180,1749084646320,-500.0,0.00021095,3]
[364376182,1749084646329,-223.759662,0.00021666,2]
[364376193,1749084646427,-316.03822774,0.00021666,2]
[364379940,1749084797773,274.362138,0.00013699,2]
[364379945,1749084903137,160.0,0.000157,2]
[364379956,1749085189403,10000.0,0.00025,120]
[364379957,1749085207998,5015.6,0.00025,120]
[364379958,1749085235806,5015.0,0.00025,120]
[364380028,1749085699144,10000.0,0.00024,120]
[364380067,1749085832343,-157.963143,0.00016571,2]
[364380069,1749085832352,-179.24397418,0.00017331,2]
[364380071,1749085832361,-156.31646831,0.00017332,2]
[364380074,1749085832401,-511.72279381,0.00017332,2]
[364380075,1749085832411,-363.36,0.00017422,3]
[364380076,1749085832421,-181.68,0.00017422,3]
[364380077,1749085832430,-545.09,0.00017422,3]
[364380078,1749085832438,-300.0,0.00017427,2]
[364380079,1749085832447,-300.0,0.00017427,2]
[364380080,1749085832456,-300.0,0.00017427,2]
[364380081,1749085832465,-856.0,0.00017427,2]
[364380082,1749085832475,-300.0,0.00017428,2]
[364380083,1749085832484,-440.0,0.00017428,2]
[364380084,1749085832493,-440.0,0.00017428,2]
[364380085,1749085832503,-440.0,0.00017428,2]
[364380086,1749085832512,-440.0,0.00017428,2]
[364380087,1749085832521,-430.0,0.00017428,2]
[364380088,1749085832530,-400.0,0.00017428,2]
[364380089,1749085832539,-401.85261119,0.00017428,2]
[364380090,1749085832548,-440.0,0.00017428,2]
[364380091,1749085832557,-440.0,0.00017428,2]
[364380092,1749085832567,-440.0,0.00017428,2]
[364380093,1749085832576,-271.64122963,0.00017428,2]
[364380094,1749085832585,-480.0,0.00017428,2]
[364380095,1749085832594,-440.0,0.00017428,2]
[364380096,1749085832604,-932.23,0.00017428,2]
[364380097,1749085832613,-440.0,0.00017428,2]
[364380098,1749085832622,-440.0,0.00017428,2]
[364380099,1749085832631,-440.0,0.00017428,2]
[364380100,1749085832640,-440.0,0.00017428,2]
[364380101,1749085832649,-440.0,0.00017428,2]
[364380103,1749085832658,-867.26,0.00017428,2]
[364380105,1749085832667,-430.0,0.00017428,2]
[364380106,1749085832677,-440.0,0.00017428,2]
[364380107,1749085832685,-1067.23929197,0.00017428,2]
[364380108,1749085832695,-1067.23929197,0.00017428,2]
[364380110,1749085832704,-1067.23929197,0.00017428,2]
[364380112,1749085832713,-1067.23929197,0.00017428,2]
[364380114,1749085832723,-1067.23929197,0.00017428,2]
[364380116,1749085832732,-1067.23929197,0.00017428,2]
[364380118,1749085832740,-1067.23929197,0.00017428,2]
[364380120,1749085832749,-1067.23929197,0.00017428,2]
[364380122,1749085832759,-1067.23929197,0.00017428,2]
[364380124,1749085832768,-1067.23929197,0.00017428,2]
[364380126,1749085832777,-1067.23929197,0.00017428,2]
[364380128,1749085832786,-1067.23929197,0.00017428,2]
[364380130,1749085832795,-1067.23929197,0.00017428,2]
[364380132,1749085832804,-1067.23929197,0.00017428,2]
[364380134,1749085832813,-1067.23929197,0.00017428,2]
[364380136,1749085832822,-1067.23929197,0.00017428,2]
[364380138,1749085832831,-1067.23929197,0.00017428,2]
[364380140,1749085832841,-1067.23929197,0.00017428,2]